[Event "Titled Tuesday Blitz April 4 Early 2023"]
[White "Mayaud, Raphael"]
[Black "Sanchez, Robert"]
[WhiteFideId "627151"]
[BlackFideId "2034360"]
[WhiteElo "2191"]
[BlackElo "2046"]
[Result "1-0"]
[Round "02"]
[TimeControl "180+2"]
[Date "2023.04.04"]
[WhiteClock "0:00:28"]
[BlackClock "0:01:02"]

1. d4 {[%clk 0:02:54]}  d5 {[%clk 0:02:59]} 2. Nf3 {[%clk 0:02:53]}  c6 {[%clk 0:02:59]} 3. e3 {[%clk 0:02:51]}  Bf5 {[%clk 0:02:58]} 4. c4 {[%clk 0:02:48]}  e6 {[%clk 0:02:57]} 5. Qb3 {[%clk 0:02:48]}  Qb6 {[%clk 0:02:57]} 6. c5 {[%clk 0:02:48]}  Qc7 {[%clk 0:02:56]} 7. Nc3 {[%clk 0:02:47]}  Nf6 {[%clk 0:02:55]} 8. Be2 {[%clk 0:02:47]}  Be7 {[%clk 0:02:55]} 9. O-O {[%clk 0:02:46]}  Nbd7 {[%clk 0:02:55]} 10. Qd1 {[%clk 0:02:46]}  h6 {[%clk 0:02:55]} 11. b4 {[%clk 0:02:44]}  e5 {[%clk 0:02:54]} 12. a4 {[%clk 0:02:44]}  e4 {[%clk 0:02:53]} 13. Nd2 {[%clk 0:02:43]}  h5 {[%clk 0:02:48]} 14. b5 {[%clk 0:02:43]}  Ng4 {[%clk 0:02:48]} 15. g3 {[%clk 0:02:25]}  Ndf6 {[%clk 0:02:47]} 16. bxc6 {[%clk 0:02:19]}  bxc6 {[%clk 0:02:46]} 17. Nb5 {[%clk 0:01:52]}  cxb5 {[%clk 0:02:43]} 18. axb5 {[%clk 0:01:53]}  h4 {[%clk 0:02:38]} 19. b6 {[%clk 0:01:53]}  Qb8 {[%clk 0:02:34]} 20. Qa4+ {[%clk 0:01:49]}  Kf8 {[%clk 0:02:34]} 21. bxa7 {[%clk 0:01:46]}  Qc7 {[%clk 0:02:34]} 22. Qa5 {[%clk 0:01:42]}  Qc8 {[%clk 0:02:21]} 23. Qa6 {[%clk 0:01:37]}  g5 {[%clk 0:02:11]} 24. Qxc8+ {[%clk 0:01:36]}  Bxc8 {[%clk 0:02:12]} 25. Bb5 {[%clk 0:01:31]}  Bd7 {[%clk 0:02:05]} 26. c6 {[%clk 0:01:28]}  Bc8 {[%clk 0:02:05]} 27. Nb3 {[%clk 0:01:17]}  Ne8 {[%clk 0:02:02]} 28. Nc5 {[%clk 0:00:54]}  Nc7 {[%clk 0:02:00]} 29. Be2 {[%clk 0:00:49]}  Bxc5 {[%clk 0:01:50]} 30. dxc5 {[%clk 0:00:48]}  Ne5 {[%clk 0:01:46]} 31. Bb2 {[%clk 0:00:48]}  f6 {[%clk 0:01:46]} 32. Rfb1 {[%clk 0:00:43]}  hxg3 {[%clk 0:01:38]} 33. hxg3 {[%clk 0:00:42]}  Kf7 {[%clk 0:01:20]} 34. Bd4 {[%clk 0:00:36]}  Nf3+ {[%clk 0:01:11]} 35. Bxf3 {[%clk 0:00:34]}  exf3 {[%clk 0:01:12]} 36. Rb7 {[%clk 0:00:31]}  Bh3 {[%clk 0:01:07]} 37. Rxc7+ {[%clk 0:00:31]}  Ke6 {[%clk 0:01:08]} 38. Rb7 {[%clk 0:00:28]}  Bg2 {[%clk 0:01:02]} 1-0


[Site "https://www.chess.com"]

[Event "Titled Tuesday Blitz April 4 Early 2023"]
[White "Wagner, Dennis"]
[Black "Naroditsky, Daniel"]
[WhiteFideId "24650684"]
[BlackFideId "2026961"]
[WhiteElo "2470"]
[BlackElo "2633"]
[Result "0-1"]
[Round "03"]
[TimeControl "180+2"]
[Date "2023.04.04"]
[WhiteClock "0:00:12"]
[BlackClock "0:00:29"]

1. d4 {[%clk 0:03:00]}  Nf6 {[%clk 0:03:00]} 2. Nf3 {[%clk 0:03:01]}  g6 {[%clk 0:03:00]} 3. c4 {[%clk 0:03:01]}  Bg7 {[%clk 0:03:00]} 4. Nc3 {[%clk 0:03:02]}  d6 {[%clk 0:03:01]} 5. e4 {[%clk 0:03:03]}  O-O {[%clk 0:03:02]} 6. Be2 {[%clk 0:03:03]}  e5 {[%clk 0:03:02]} 7. O-O {[%clk 0:03:04]}  h6 {[%clk 0:03:01]} 8. d5 {[%clk 0:02:59]}  a5 {[%clk 0:02:56]} 9. h3 {[%clk 0:02:58]}  Nbd7 {[%clk 0:02:51]} 10. Be3 {[%clk 0:02:57]}  Ne8 {[%clk 0:02:37]} 11. g4 {[%clk 0:02:50]}  Nc5 {[%clk 0:02:29]} 12. Nd2 {[%clk 0:02:32]}  f5 {[%clk 0:02:23]} 13. gxf5 {[%clk 0:02:13]}  gxf5 {[%clk 0:02:24]} 14. exf5 {[%clk 0:02:13]}  Bxf5 {[%clk 0:02:23]} 15. Bg4 {[%clk 0:02:13]}  Bd3 {[%clk 0:01:57]} 16. Bxc5 {[%clk 0:01:51]}  Bxf1 {[%clk 0:01:39]} 17. Qxf1 {[%clk 0:01:50]}  dxc5 {[%clk 0:01:39]} 18. Nce4 {[%clk 0:01:50]}  b6 {[%clk 0:01:32]} 19. Kh1 {[%clk 0:01:49]}  Nd6 {[%clk 0:01:27]} 20. Qg2 {[%clk 0:01:48]}  Kh8 {[%clk 0:01:26]} 21. Rg1 {[%clk 0:01:48]}  Qe7 {[%clk 0:01:18]} 22. Be6 {[%clk 0:01:44]}  Rf4 {[%clk 0:01:12]} 23. Qg6 {[%clk 0:01:40]}  Raf8 {[%clk 0:01:02]} 24. Ng5 {[%clk 0:01:35]}  hxg5 {[%clk 0:00:53]} 25. Qh5+ {[%clk 0:01:34]}  Bh6 {[%clk 0:00:53]} 26. Qxh6+ {[%clk 0:01:11]}  Qh7 {[%clk 0:00:54]} 27. Qxh7+ {[%clk 0:01:08]}  Kxh7 {[%clk 0:00:54]} 28. f3 {[%clk 0:00:59]}  Kh6 {[%clk 0:00:46]} 29. b3 {[%clk 0:00:58]}  e4 {[%clk 0:00:46]} 30. Nxe4 {[%clk 0:00:54]}  Nxe4 {[%clk 0:00:44]} 31. fxe4 {[%clk 0:00:55]}  Rxe4 {[%clk 0:00:45]} 32. Rg2 {[%clk 0:00:51]}  Rf1+ {[%clk 0:00:40]} 33. Kh2 {[%clk 0:00:50]}  Ref4 {[%clk 0:00:39]} 34. a4 {[%clk 0:00:25]}  R1f2 {[%clk 0:00:36]} 35. Bd7 {[%clk 0:00:24]}  R4f3 {[%clk 0:00:31]} 36. Rxf2 {[%clk 0:00:23]}  Rxf2+ {[%clk 0:00:32]} 37. Kg3 {[%clk 0:00:20]}  Rb2 {[%clk 0:00:33]} 38. h4 {[%clk 0:00:15]}  Rxb3+ {[%clk 0:00:32]} 39. Kg4 {[%clk 0:00:16]}  gxh4 {[%clk 0:00:32]} 40. Kxh4 {[%clk 0:00:17]}  Rb4 {[%clk 0:00:30]} 41. Bb5 {[%clk 0:00:16]}  Rxb5 {[%clk 0:00:28]} 42. cxb5 {[%clk 0:00:13]}  c4 {[%clk 0:00:29]} 43. Kg3 {[%clk 0:00:11]}  c3 {[%clk 0:00:29]} 44. d6 {[%clk 0:00:12]}  cxd6 {[%clk 0:00:29]} 0-1


[Site "https://www.chess.com"]

[Event "Titled Tuesday Blitz April 4 Early 2023"]
[White "Weetik, Vjacheslav"]
[Black "Bortnyk, Olexandr"]
[WhiteFideId "4153472"]
[BlackFideId "14120828"]
[WhiteElo "2469"]
[BlackElo "2734"]
[Result "0-1"]
[Round "03"]
[TimeControl "180+2"]
[Date "2023.04.04"]
[WhiteClock "0:00:06"]
[BlackClock "0:00:04"]

1. d4 {[%clk 0:02:59]}  d6 {[%clk 0:02:52]} 2. e4 {[%clk 0:02:58]}  Nf6 {[%clk 0:02:52]} 3. Nc3 {[%clk 0:02:59]}  e5 {[%clk 0:02:53]} 4. Nf3 {[%clk 0:02:56]}  Nbd7 {[%clk 0:02:53]} 5. Bc4 {[%clk 0:02:56]}  Be7 {[%clk 0:02:53]} 6. O-O {[%clk 0:02:55]}  c6 {[%clk 0:02:53]} 7. a4 {[%clk 0:02:55]}  Qc7 {[%clk 0:02:53]} 8. Qe2 {[%clk 0:02:53]}  O-O {[%clk 0:02:47]} 9. Rd1 {[%clk 0:02:53]}  a5 {[%clk 0:02:43]} 10. Ba2 {[%clk 0:02:51]}  exd4 {[%clk 0:02:37]} 11. Nxd4 {[%clk 0:02:36]}  Nc5 {[%clk 0:02:38]} 12. Bf4 {[%clk 0:02:11]}  Qb6 {[%clk 0:02:29]} 13. Rab1 {[%clk 0:01:49]}  Re8 {[%clk 0:02:17]} 14. Kh1 {[%clk 0:01:16]}  Qb4 {[%clk 0:01:58]} 15. f3 {[%clk 0:01:01]}  Nh5 {[%clk 0:01:16]} 16. Be3 {[%clk 0:00:56]}  Bf6 {[%clk 0:01:15]} 17. g4 {[%clk 0:00:39]}  Nf4 {[%clk 0:01:07]} 18. Bxf4 {[%clk 0:00:40]}  Bxd4 {[%clk 0:01:08]} 19. Bxd6 {[%clk 0:00:39]}  Bxc3 {[%clk 0:00:52]} 20. bxc3 {[%clk 0:00:40]}  Qxc3 {[%clk 0:00:52]} 21. Bxc5 {[%clk 0:00:22]}  Qxc5 {[%clk 0:00:50]} 22. Qc4 {[%clk 0:00:22]}  Qe7 {[%clk 0:00:46]} 23. Qd4 {[%clk 0:00:17]}  Qa3 {[%clk 0:00:30]} 24. Bb3 {[%clk 0:00:14]}  Be6 {[%clk 0:00:31]} 25. Rd3 {[%clk 0:00:10]}  Bxb3 {[%clk 0:00:09]} 26. Rdxb3 {[%clk 0:00:08]}  Qf8 {[%clk 0:00:05]} 27. Rxb7 {[%clk 0:00:08]}  Rad8 {[%clk 0:00:03]} 28. Qc4 {[%clk 0:00:09]}  Rd6 {[%clk 0:00:01]} 29. Re1 {[%clk 0:00:05]}  Rf6 {[%clk 0:00:02]} 30. Kg2 {[%clk 0:00:05]}  Qd6 {[%clk 0:00:01]} 31. Re2 {[%clk 0:00:05]}  Qf4 {[%clk 0:00:01]} 32. Rf2 {[%clk 0:00:05]}  h5 {[%clk 0:00:01]} 33. h3 {[%clk 0:00:05]}  hxg4 {[%clk 0:00:01]} 34. hxg4 {[%clk 0:00:04]}  Rh6 {[%clk 0:00:02]} 35. Kf1 {[%clk 0:00:04]}  Qc1+ {[%clk 0:00:02]} 36. Ke2 {[%clk 0:00:05]}  Rf8 {[%clk 0:00:02]} 37. Rd7 {[%clk 0:00:04]}  Rh1 {[%clk 0:00:01]} 38. Rd2 {[%clk 0:00:04]}  Re1+ {[%clk 0:00:01]} 39. Kd3 {[%clk 0:00:04]}  Rd8+ {[%clk 0:00:01]} 40. Kc3 {[%clk 0:00:05]}  Re3+ {[%clk 0:00:02]} 41. Rd3 {[%clk 0:00:05]}  Rexd3+ {[%clk 0:00:02]} 42. Qxd3 {[%clk 0:00:05]}  Rxd3+ {[%clk 0:00:02]} 43. Kxd3 {[%clk 0:00:05]}  Qa3+ {[%clk 0:00:02]} 44. Kd2 {[%clk 0:00:04]}  Qxa4 {[%clk 0:00:03]} 45. Re2 {[%clk 0:00:05]}  Qb4+ {[%clk 0:00:03]} 46. Kd3 {[%clk 0:00:05]}  Qb5+ {[%clk 0:00:03]} 47. Ke3 {[%clk 0:00:05]}  a4 {[%clk 0:00:03]} 48. Rd2 {[%clk 0:00:06]}  Qc5+ {[%clk 0:00:04]} 49. Ke2 {[%clk 0:00:06]}  a3 {[%clk 0:00:04]} 0-1


[Site "https://www.chess.com"]

[Event "Titled Tuesday Blitz April 4 Early 2023"]
[White "Duda, Jan-Krzysztof"]
[Black "Cherniaiev, Tykhon"]
[WhiteFideId "1170546"]
[BlackFideId "14182360"]
[WhiteElo "2790"]
[BlackElo "2450"]
[Result "1-0"]
[Round "03"]
[TimeControl "180+2"]
[Date "2023.04.04"]
[WhiteClock "0:00:20"]
[BlackClock "0:00:13"]

1. e4 {[%clk 0:03:00]}  e5 {[%clk 0:02:59]} 2. Nf3 {[%clk 0:03:01]}  Nc6 {[%clk 0:02:59]} 3. Bc4 {[%clk 0:03:01]}  Nf6 {[%clk 0:03:00]} 4. d3 {[%clk 0:03:01]}  Bc5 {[%clk 0:02:59]} 5. c3 {[%clk 0:02:59]}  d6 {[%clk 0:02:52]} 6. Nbd2 {[%clk 0:02:57]}  a6 {[%clk 0:02:51]} 7. Bb3 {[%clk 0:02:56]}  Ba7 {[%clk 0:02:47]} 8. Nf1 {[%clk 0:02:56]}  O-O {[%clk 0:02:42]} 9. Ng3 {[%clk 0:02:55]}  Be6 {[%clk 0:02:43]} 10. Bc2 {[%clk 0:02:53]}  d5 {[%clk 0:02:42]} 11. exd5 {[%clk 0:02:45]}  Qxd5 {[%clk 0:02:31]} 12. O-O {[%clk 0:02:46]}  Rad8 {[%clk 0:02:27]} 13. Bg5 {[%clk 0:02:41]}  Bg4 {[%clk 0:02:13]} 14. Bxf6 {[%clk 0:02:03]}  Bxf3 {[%clk 0:01:52]} 15. Qxf3 {[%clk 0:02:03]}  Qxf3 {[%clk 0:01:52]} 16. gxf3 {[%clk 0:02:04]}  gxf6 {[%clk 0:01:53]} 17. f4 {[%clk 0:02:00]}  exf4 {[%clk 0:01:38]} 18. Nh5 {[%clk 0:02:00]}  Kh8 {[%clk 0:01:31]} 19. d4 {[%clk 0:01:56]}  Ne7 {[%clk 0:01:15]} 20. Rfd1 {[%clk 0:01:05]}  Nd5 {[%clk 0:00:42]} 21. Be4 {[%clk 0:01:03]}  Rg8+ {[%clk 0:00:34]} 22. Kf1 {[%clk 0:00:48]}  Rg5 {[%clk 0:00:32]} 23. Bxd5 {[%clk 0:00:48]}  Rxh5 {[%clk 0:00:31]} 24. Bxb7 {[%clk 0:00:48]}  Rxh2 {[%clk 0:00:16]} 25. Bc6 {[%clk 0:00:20]}  Rd6 {[%clk 0:00:13]} 26. Bg2 {[%clk 0:00:19]}  c5 {[%clk 0:00:11]} 27. dxc5 {[%clk 0:00:20]}  Rxd1+ {[%clk 0:00:11]} 28. Rxd1 {[%clk 0:00:20]}  Bxc5 {[%clk 0:00:12]} 29. Rd5 {[%clk 0:00:16]}  f3 {[%clk 0:00:07]} 30. Rxc5 {[%clk 0:00:15]}  fxg2+ {[%clk 0:00:07]} 31. Kg1 {[%clk 0:00:16]}  Rh1+ {[%clk 0:00:08]} 32. Kxg2 {[%clk 0:00:16]}  Rb1 {[%clk 0:00:08]} 33. b4 {[%clk 0:00:15]}  Ra1 {[%clk 0:00:09]} 34. Ra5 {[%clk 0:00:15]}  Rc1 {[%clk 0:00:09]} 35. Rxa6 {[%clk 0:00:15]}  Rxc3 {[%clk 0:00:10]} 36. a4 {[%clk 0:00:15]}  Rb3 {[%clk 0:00:09]} 37. Rb6 {[%clk 0:00:15]}  Kg7 {[%clk 0:00:09]} 38. a5 {[%clk 0:00:15]}  h5 {[%clk 0:00:10]} 39. a6 {[%clk 0:00:15]}  h4 {[%clk 0:00:09]} 40. b5 {[%clk 0:00:15]}  h3+ {[%clk 0:00:10]} 41. Kh2 {[%clk 0:00:15]}  Rf3 {[%clk 0:00:09]} 42. a7 {[%clk 0:00:15]}  Rxf2+ {[%clk 0:00:10]} 43. Kxh3 {[%clk 0:00:16]}  Ra2 {[%clk 0:00:10]} 44. Ra6 {[%clk 0:00:16]}  Rxa6 {[%clk 0:00:10]} 45. bxa6 {[%clk 0:00:17]}  f5 {[%clk 0:00:11]} 46. a8=Q {[%clk 0:00:17]}  f4 {[%clk 0:00:12]} 47. Qf3 {[%clk 0:00:17]}  f5 {[%clk 0:00:11]} 48. a7 {[%clk 0:00:18]}  Kh7 {[%clk 0:00:11]} 49. a8=Q {[%clk 0:00:19]}  Kg7 {[%clk 0:00:12]} 50. Qad5 {[%clk 0:00:19]}  Kh7 {[%clk 0:00:13]} 51. Qf7+ {[%clk 0:00:19]}  Kh6 {[%clk 0:00:13]} 52. Q3h5# {[%clk 0:00:20]} 1-0


[Site "https://www.chess.com"]

[Event "Titled Tuesday Blitz April 4 Early 2023"]
[White "Bocharov, Dmitry"]
[Black "Hakobyan, Aram"]
[WhiteFideId "4138716"]
[BlackFideId "13306677"]
[WhiteElo "2469"]
[BlackElo "2584"]
[Result "0-1"]
[Round "03"]
[TimeControl "180+2"]
[Date "2023.04.04"]
[WhiteClock "0:00:09"]
[BlackClock "0:00:35"]

1. c4 {[%clk 0:03:00]}  g6 {[%clk 0:02:59]} 2. g3 {[%clk 0:03:01]}  Bg7 {[%clk 0:03:00]} 3. Bg2 {[%clk 0:03:01]}  d6 {[%clk 0:03:00]} 4. Nc3 {[%clk 0:03:01]}  Nf6 {[%clk 0:03:00]} 5. d4 {[%clk 0:03:01]}  O-O {[%clk 0:03:00]} 6. Nf3 {[%clk 0:03:01]}  Bf5 {[%clk 0:03:00]} 7. Nh4 {[%clk 0:02:58]}  Bc8 {[%clk 0:03:01]} 8. O-O {[%clk 0:02:57]}  a5 {[%clk 0:03:02]} 9. b3 {[%clk 0:02:56]}  Nc6 {[%clk 0:03:02]} 10. Nf3 {[%clk 0:02:52]}  Bf5 {[%clk 0:03:01]} 11. d5 {[%clk 0:02:47]}  Ne4 {[%clk 0:02:21]} 12. Nxe4 {[%clk 0:02:47]}  Bxe4 {[%clk 0:02:22]} 13. dxc6 {[%clk 0:02:35]}  Bxa1 {[%clk 0:02:20]} 14. Bh6 {[%clk 0:02:32]}  Bf6 {[%clk 0:02:20]} 15. Bxf8 {[%clk 0:02:23]}  Qxf8 {[%clk 0:02:21]} 16. cxb7 {[%clk 0:02:20]}  Bxb7 {[%clk 0:02:22]} 17. Qd2 {[%clk 0:02:18]}  c5 {[%clk 0:02:20]} 18. h4 {[%clk 0:02:13]}  a4 {[%clk 0:02:18]} 19. h5 {[%clk 0:02:11]}  gxh5 {[%clk 0:02:15]} 20. Nh4 {[%clk 0:02:02]}  Bxg2 {[%clk 0:02:06]} 21. Nxg2 {[%clk 0:02:03]}  axb3 {[%clk 0:02:06]} 22. axb3 {[%clk 0:02:03]}  Kh8 {[%clk 0:02:03]} 23. Qd5 {[%clk 0:01:54]}  h4 {[%clk 0:01:53]} 24. gxh4 {[%clk 0:01:52]}  Rb8 {[%clk 0:01:51]} 25. Rb1 {[%clk 0:01:47]}  Qg7 {[%clk 0:01:48]} 26. Qe4 {[%clk 0:01:43]}  Rg8 {[%clk 0:01:43]} 27. Kh2 {[%clk 0:01:40]}  Be5+ {[%clk 0:01:41]} 28. Kh1 {[%clk 0:01:34]}  Qf6 {[%clk 0:01:32]} 29. f4 {[%clk 0:01:29]}  Bc3 {[%clk 0:01:26]} 30. Rf1 {[%clk 0:01:26]}  Qg7 {[%clk 0:01:19]} 31. Qf3 {[%clk 0:01:18]}  Bf6 {[%clk 0:01:15]} 32. Kh2 {[%clk 0:01:14]}  Qg6 {[%clk 0:01:00]} 33. Rg1 {[%clk 0:01:04]}  Bxh4 {[%clk 0:00:52]} 34. Qh3 {[%clk 0:00:08]}  Bg3+ {[%clk 0:00:40]} 35. Kh1 {[%clk 0:00:09]}  Bxf4 {[%clk 0:00:35]} 0-1


[Site "https://www.chess.com"]

[Event "Titled Tuesday Blitz April 4 Early 2023"]
[White "Firouzja, Alireza"]
[Black "Riff, Vincent"]
[WhiteFideId "12573981"]
[BlackFideId "617776"]
[WhiteElo "2904"]
[BlackElo "2369"]
[Result "1-0"]
[Round "03"]
[TimeControl "180+2"]
[Date "2023.04.04"]
[WhiteClock "0:01:50"]
[BlackClock "0:00:08"]

1. d4 {[%clk 0:03:00]}  Nf6 {[%clk 0:02:54]} 2. c4 {[%clk 0:03:00]}  e6 {[%clk 0:02:50]} 3. g3 {[%clk 0:02:59]}  Bb4+ {[%clk 0:02:48]} 4. Nc3 {[%clk 0:02:59]}  O-O {[%clk 0:02:45]} 5. Bg2 {[%clk 0:02:59]}  d5 {[%clk 0:02:41]} 6. Nf3 {[%clk 0:02:59]}  Nbd7 {[%clk 0:02:29]} 7. O-O {[%clk 0:02:55]}  c6 {[%clk 0:02:18]} 8. Qc2 {[%clk 0:02:54]}  a6 {[%clk 0:02:08]} 9. a3 {[%clk 0:02:44]}  Be7 {[%clk 0:02:03]} 10. e4 {[%clk 0:02:39]}  b5 {[%clk 0:01:52]} 11. e5 {[%clk 0:02:30]}  Ne8 {[%clk 0:01:51]} 12. c5 {[%clk 0:02:31]}  a5 {[%clk 0:01:49]} 13. h4 {[%clk 0:02:31]}  Ba6 {[%clk 0:01:35]} 14. b4 {[%clk 0:02:31]}  Bc8 {[%clk 0:01:33]} 15. Ng5 {[%clk 0:02:27]}  Bxg5 {[%clk 0:01:31]} 16. Bxg5 {[%clk 0:02:27]}  f6 {[%clk 0:01:31]} 17. exf6 {[%clk 0:02:27]}  Nexf6 {[%clk 0:01:30]} 18. Rae1 {[%clk 0:02:24]}  axb4 {[%clk 0:01:29]} 19. axb4 {[%clk 0:02:24]}  h6 {[%clk 0:01:24]} 20. Bf4 {[%clk 0:02:19]}  Re8 {[%clk 0:01:20]} 21. Re2 {[%clk 0:02:14]}  Nf8 {[%clk 0:01:20]} 22. Rfe1 {[%clk 0:02:15]}  Bd7 {[%clk 0:00:59]} 23. Bd6 {[%clk 0:02:14]}  Ra3 {[%clk 0:00:56]} 24. Bh3 {[%clk 0:02:11]}  Qa8 {[%clk 0:00:37]} 25. Re3 {[%clk 0:02:09]}  Rd8 {[%clk 0:00:29]} 26. Be5 {[%clk 0:01:55]}  Ne8 {[%clk 0:00:23]} 27. Rf3 {[%clk 0:01:54]}  Ra1 {[%clk 0:00:20]} 28. Rxa1 {[%clk 0:01:54]}  Qxa1+ {[%clk 0:00:21]} 29. Kg2 {[%clk 0:01:55]}  Qe1 {[%clk 0:00:20]} 30. Bg4 {[%clk 0:01:52]}  Nh7 {[%clk 0:00:13]} 31. Qg6 {[%clk 0:01:50]}  Nf8 {[%clk 0:00:08]} 32. Qf7+ {[%clk 0:01:50]} 1-0


[Site "https://www.chess.com"]

[Event "Titled Tuesday Blitz April 4 Early 2023"]
[White "Levitskiy, Andrey"]
[Black "Alekseenko, Kirill"]
[WhiteFideId "14132885"]
[BlackFideId "4135539"]
[WhiteElo "2341"]
[BlackElo "2683"]
[Result "0-1"]
[Round "03"]
[TimeControl "180+2"]
[Date "2023.04.04"]
[WhiteClock "0:00:05"]
[BlackClock "0:00:37"]

1. e4 {[%clk 0:03:00]}  e5 {[%clk 0:02:59]} 2. Nf3 {[%clk 0:03:01]}  Nc6 {[%clk 0:03:00]} 3. Bc4 {[%clk 0:03:01]}  Bc5 {[%clk 0:02:58]} 4. c3 {[%clk 0:03:01]}  Nf6 {[%clk 0:02:59]} 5. d4 {[%clk 0:02:56]}  exd4 {[%clk 0:02:59]} 6. b4 {[%clk 0:02:56]}  Be7 {[%clk 0:02:54]} 7. e5 {[%clk 0:02:55]}  Ne4 {[%clk 0:02:49]} 8. b5 {[%clk 0:02:55]}  d5 {[%clk 0:02:28]} 9. exd6 {[%clk 0:02:39]}  Nxd6 {[%clk 0:02:29]} 10. bxc6 {[%clk 0:02:39]}  Nxc4 {[%clk 0:02:24]} 11. cxb7 {[%clk 0:02:32]}  Bxb7 {[%clk 0:02:21]} 12. Qa4+ {[%clk 0:02:33]}  Qd7 {[%clk 0:02:15]} 13. Qxc4 {[%clk 0:02:32]}  O-O-O {[%clk 0:02:06]} 14. cxd4 {[%clk 0:02:00]}  Qg4 {[%clk 0:01:40]} 15. Nbd2 {[%clk 0:01:20]}  Qxg2 {[%clk 0:01:40]} 16. Rg1 {[%clk 0:01:11]}  Qh3 {[%clk 0:01:40]} 17. Bb2 {[%clk 0:00:55]}  Bd6 {[%clk 0:01:12]} 18. Ne5 {[%clk 0:00:12]}  f6 {[%clk 0:01:00]} 19. O-O-O {[%clk 0:00:10]}  fxe5 {[%clk 0:01:00]} 20. Rg3 {[%clk 0:00:09]}  Qd7 {[%clk 0:00:41]} 21. dxe5 {[%clk 0:00:08]}  Be7 {[%clk 0:00:39]} 22. Rb3 {[%clk 0:00:04]}  Qc6 {[%clk 0:00:36]} 23. Qxc6 {[%clk 0:00:05]}  Bxc6 {[%clk 0:00:37]} 24. Nc4 {[%clk 0:00:04]}  Rxd1+ {[%clk 0:00:36]} 25. Kxd1 {[%clk 0:00:05]}  Ba4 {[%clk 0:00:37]} 0-1


[Site "https://www.chess.com"]

[Event "Titled Tuesday Blitz April 4 Early 2023"]
[White "Korobov, Anton"]
[Black "Kowalczyk, Pawel"]
[WhiteFideId "14105730"]
[BlackFideId "1130641"]
[WhiteElo "2638"]
[BlackElo "2324"]
[Result "1-0"]
[Round "03"]
[TimeControl "180+2"]
[Date "2023.04.04"]
[WhiteClock "0:00:30"]
[BlackClock "0:01:06"]

1. d4 {[%clk 0:03:00]}  Nf6 {[%clk 0:02:56]} 2. c4 {[%clk 0:02:59]}  g6 {[%clk 0:02:54]} 3. Nc3 {[%clk 0:02:58]}  d5 {[%clk 0:02:53]} 4. cxd5 {[%clk 0:02:58]}  Nxd5 {[%clk 0:02:52]} 5. e4 {[%clk 0:02:58]}  Nxc3 {[%clk 0:02:52]} 6. bxc3 {[%clk 0:02:59]}  Bg7 {[%clk 0:02:52]} 7. Bc4 {[%clk 0:03:00]}  O-O {[%clk 0:02:50]} 8. Ne2 {[%clk 0:03:00]}  c5 {[%clk 0:02:51]} 9. O-O {[%clk 0:03:00]}  cxd4 {[%clk 0:02:51]} 10. cxd4 {[%clk 0:02:59]}  Nc6 {[%clk 0:02:52]} 11. Be3 {[%clk 0:02:59]}  a6 {[%clk 0:02:52]} 12. Rc1 {[%clk 0:02:55]}  Na5 {[%clk 0:02:52]} 13. Bd3 {[%clk 0:02:54]}  b5 {[%clk 0:02:52]} 14. Qd2 {[%clk 0:02:51]}  Bb7 {[%clk 0:02:49]} 15. h4 {[%clk 0:02:44]}  Nc4 {[%clk 0:02:44]} 16. Bxc4 {[%clk 0:02:40]}  bxc4 {[%clk 0:02:45]} 17. f3 {[%clk 0:02:32]}  Rc8 {[%clk 0:02:42]} 18. h5 {[%clk 0:02:23]}  e6 {[%clk 0:02:37]} 19. h6 {[%clk 0:02:18]}  Bh8 {[%clk 0:02:37]} 20. Rfd1 {[%clk 0:02:14]}  Qd7 {[%clk 0:02:34]} 21. Nc3 {[%clk 0:02:07]}  Rfd8 {[%clk 0:02:31]} 22. Rb1 {[%clk 0:02:06]}  Ba8 {[%clk 0:02:22]} 23. Qf2 {[%clk 0:01:48]}  Rb8 {[%clk 0:02:19]} 24. Rxb8 {[%clk 0:01:40]}  Rxb8 {[%clk 0:02:20]} 25. Qg3 {[%clk 0:01:40]}  Rd8 {[%clk 0:02:17]} 26. e5 {[%clk 0:01:33]}  f6 {[%clk 0:02:15]} 27. f4 {[%clk 0:01:26]}  Qc6 {[%clk 0:02:15]} 28. d5 {[%clk 0:01:22]}  exd5 {[%clk 0:02:14]} 29. Bd4 {[%clk 0:01:22]}  fxe5 {[%clk 0:02:11]} 30. fxe5 {[%clk 0:01:20]}  Qe6 {[%clk 0:02:11]} 31. Rf1 {[%clk 0:01:17]}  Rf8 {[%clk 0:02:06]} 32. Rxf8+ {[%clk 0:01:14]}  Kxf8 {[%clk 0:02:07]} 33. Na4 {[%clk 0:01:14]}  Bc6 {[%clk 0:01:59]} 34. Nc5 {[%clk 0:01:13]}  Qf5 {[%clk 0:02:00]} 35. Qa3 {[%clk 0:01:06]}  Bb5 {[%clk 0:01:24]} 36. Ne6+ {[%clk 0:00:44]}  Kf7 {[%clk 0:01:22]} 37. Nd8+ {[%clk 0:00:35]}  Ke8 {[%clk 0:01:21]} 38. Qd6 {[%clk 0:00:34]}  Qf4 {[%clk 0:01:13]} 39. Qe6+ {[%clk 0:00:31]}  Kxd8 {[%clk 0:01:06]} 40. Bb6# {[%clk 0:00:30]} 1-0


[Site "https://www.chess.com"]